[Event "*** Titled Tuesday Blitz"]
[Site "Chess.com"]
[Date "2021.02.02"]
[Round "11"]
[White "MariaFominykh"]
[Black "InitiatingASC"]
[Result "0-1"]
[WhiteElo "2276"]
[BlackElo "2402"]
[TimeControl "180+1"]
[EndTime "12:07:30 PST"]
[Termination "InitiatingASC won on time"]

1. d4 {[%clk 0:03:00.9]} 1... Nf6 {[%clk 0:02:56]} 2. c4 {[%clk 0:03:00.8]} 2...
e6 {[%clk 0:02:56.5]} 3. g3 {[%clk 0:02:59.8]} 3... d5 {[%clk 0:02:55]} 4. Nc3
{[%clk 0:02:59.1]} 4... Be7 {[%clk 0:02:53.4]} 5. Bg2 {[%clk 0:02:58]} 5... O-O
{[%clk 0:02:53.2]} 6. Nf3 {[%clk 0:02:50.4]} 6... c5 {[%clk 0:02:53.4]} 7. cxd5
{[%clk 0:02:49.9]} 7... exd5 {[%clk 0:02:53.3]} 8. O-O {[%clk 0:02:47.3]} 8...
Nc6 {[%clk 0:02:53.7]} 9. dxc5 {[%clk 0:02:43.1]} 9... Bxc5 {[%clk 0:02:54.6]}
10. Bg5 {[%clk 0:02:42.5]} 10... Be7 {[%clk 0:02:54]} 11. Rc1 {[%clk 0:02:13.6]}
11... Be6 {[%clk 0:02:52.7]} 12. Nd4 {[%clk 0:02:04.1]} 12... Nxd4 {[%clk
0:02:44.9]} 13. Qxd4 {[%clk 0:02:05]} 13... b6 {[%clk 0:02:37.2]} 14. Qd3 {[%clk
0:01:41]} 14... Qd7 {[%clk 0:02:20.9]} 15. Bxf6 {[%clk 0:01:23.3]} 15... Bxf6
{[%clk 0:02:19.6]} 16. Nxd5 {[%clk 0:01:20.1]} 16... Bxb2 {[%clk 0:02:15.9]} 17.
Rcd1 {[%clk 0:00:54.1]} 17... Rad8 {[%clk 0:02:10.7]} 18. Qb1 {[%clk 0:00:45.8]}
18... Qb5 {[%clk 0:01:40]} 19. Nc7 {[%clk 0:00:18.5]} 19... Qxe2 {[%clk
0:01:38.4]} 20. Rde1 {[%clk 0:00:17.1]} 20... Qd2 {[%clk 0:01:29.1]} 21. Nxe6
{[%clk 0:00:16.6]} 21... fxe6 {[%clk 0:01:29.1]} 22. Rxe6 {[%clk 0:00:15.8]}
22... Rfe8 {[%clk 0:01:19.3]} 23. Rxe8+ {[%clk 0:00:14.8]} 23... Rxe8 {[%clk
0:01:19.6]} 24. Rd1 {[%clk 0:00:14.7]} 24... Qc3 {[%clk 0:01:16.7]} 25. Bd5+
{[%clk 0:00:13.5]} 25... Kh8 {[%clk 0:01:16]} 26. Be4 {[%clk 0:00:13.4]} 26...
h6 {[%clk 0:01:09.6]} 27. Rd3 {[%clk 0:00:12.8]} 27... Qc1+ {[%clk 0:00:57]} 28.
Qxc1 {[%clk 0:00:12.1]} 28... Bxc1 {[%clk 0:00:57.9]} 29. f3 {[%clk 0:00:11.7]}
29... a5 {[%clk 0:00:48]} 30. Rd7 {[%clk 0:00:11.2]} 30... Be3+ {[%clk
0:00:44.4]} 31. Kf1 {[%clk 0:00:11.3]} 31... Kg8 {[%clk 0:00:44.3]} 32. Ke2
{[%clk 0:00:10.7]} 32... Bc5 {[%clk 0:00:44.2]} 33. h3 {[%clk 0:00:10.2]} 33...
Re7 {[%clk 0:00:41.8]} 34. Rd8+ {[%clk 0:00:09.5]} 34... Kf7 {[%clk 0:00:42.2]}
35. Kd3 {[%clk 0:00:09.6]} 35... Ke6 {[%clk 0:00:41.1]} 36. Kc4 {[%clk
0:00:09.4]} 36... Rc7 {[%clk 0:00:35.5]} 37. Kb5 {[%clk 0:00:09.4]} 37... Bf2
{[%clk 0:00:33.8]} 38. g4 {[%clk 0:00:08.2]} 38... Ke5 {[%clk 0:00:33.4]} 39.
Re8+ {[%clk 0:00:07.7]} 39... Kf4 {[%clk 0:00:33.7]} 40. Rf8+ {[%clk 0:00:07.5]}
40... Kg3 {[%clk 0:00:32.6]} 41. Rf5 {[%clk 0:00:06.1]} 41... Kxh3 {[%clk
0:00:27.2]} 42. g5 {[%clk 0:00:06]} 42... h5 {[%clk 0:00:25.6]} 43. g6 {[%clk
0:00:05.3]} 43... h4 {[%clk 0:00:24]} 44. Rf7 {[%clk 0:00:05.4]} 44... Rxf7
{[%clk 0:00:18.4]} 45. gxf7 {[%clk 0:00:04.6]} 45... Bc5 {[%clk 0:00:19.1]} 46.
f4 {[%clk 0:00:04.3]} 46... Kg3 {[%clk 0:00:18.4]} 47. f5 {[%clk 0:00:03.8]}
47... h3 {[%clk 0:00:18.8]} 48. Kc6 {[%clk 0:00:03.4]} 48... Kf4 {[%clk
0:00:17.1]} 49. Bd5 {[%clk 0:00:03]} 49... Kxf5 {[%clk 0:00:16.9]} 50. Kd7
{[%clk 0:00:02.7]} 50... Ke5 {[%clk 0:00:16.7]} 51. Bh1 {[%clk 0:00:01.9]} 51...
g5 {[%clk 0:00:15.1]} 52. Ke8 {[%clk 0:00:02.8]} 52... g4 {[%clk 0:00:15.5]} 53.
f8=Q {[%clk 0:00:02.9]} 53... Bxf8 {[%clk 0:00:15]} 54. Kxf8 {[%clk 0:00:02.8]}
54... g3 {[%clk 0:00:15.9]} 55. Bf3 {[%clk 0:00:02.2]} 55... g2 {[%clk
0:00:16.1]} 0-1

[Event "*** Titled Tuesday Blitz"]
[Site "Chess.com"]
[Date "2021.02.02"]
[Round "11"]
[White "CoachHakia"]
[Black "Mambastik-Fantastic"]
[Result "0-1"]
[WhiteElo "2150"]
[BlackElo "2266"]
[TimeControl "180+1"]
[EndTime "12:07:35 PST"]
[Termination "Mambastik-Fantastic won on time"]

1. d4 {[%clk 0:03:00.4]} 1... Nf6 {[%clk 0:02:57.7]} 2. Bg5 {[%clk 0:02:59.5]}
2... Ne4 {[%clk 0:02:56.8]} 3. h4 {[%clk 0:02:58.7]} 3... h6 {[%clk 0:02:54.8]}
4. Bf4 {[%clk 0:02:58.3]} 4... d5 {[%clk 0:02:54.4]} 5. Nd2 {[%clk 0:02:56.8]}
5... c5 {[%clk 0:02:45.5]} 6. e3 {[%clk 0:02:50.2]} 6... Qb6 {[%clk 0:02:41.3]}
7. Nxe4 {[%clk 0:02:45.9]} 7... dxe4 {[%clk 0:02:40.1]} 8. dxc5 {[%clk
0:02:46.2]} 8... Qxb2 {[%clk 0:02:32.6]} 9. Be2 {[%clk 0:02:29.4]} 9... Qc3+
{[%clk 0:02:29]} 10. Kf1 {[%clk 0:02:27.8]} 10... Qxc5 {[%clk 0:02:27.1]} 11.
Rb1 {[%clk 0:02:06.8]} 11... Nc6 {[%clk 0:02:25.5]} 12. Rb5 {[%clk 0:02:04.8]}
12... Qc3 {[%clk 0:02:22.8]} 13. Rb3 {[%clk 0:01:39.3]} 13... Qa5 {[%clk
0:02:15.7]} 14. Bb5 {[%clk 0:01:29.8]} 14... e6 {[%clk 0:02:05.5]} 15. Ne2
{[%clk 0:01:29.2]} 15... Be7 {[%clk 0:02:02.2]} 16. Nd4 {[%clk 0:01:27.6]} 16...
O-O {[%clk 0:01:59]} 17. Nxc6 {[%clk 0:01:20.2]} 17... bxc6 {[%clk 0:01:57.3]}
18. Bxc6 {[%clk 0:01:20.4]} 18... Qa6+ {[%clk 0:01:57.3]} 19. Bb5 {[%clk
0:01:20]} 19... Qxa2 {[%clk 0:01:57.1]} 20. g4 {[%clk 0:01:14.4]} 20... Ba6
{[%clk 0:01:36.8]} 21. Bxa6 {[%clk 0:00:57.2]} 21... Qxa6+ {[%clk 0:01:34.8]}
22. Kg2 {[%clk 0:00:58.1]} 22... Rfd8 {[%clk 0:01:28]} 23. Qe1 {[%clk
0:00:48.3]} 23... e5 {[%clk 0:01:17.4]} 24. Bg3 {[%clk 0:00:32.1]} 24... Qe6
{[%clk 0:01:15.4]} 25. Qe2 {[%clk 0:00:31.2]} 25... a5 {[%clk 0:01:14.9]} 26. g5
{[%clk 0:00:29.1]} 26... hxg5 {[%clk 0:01:11.8]} 27. hxg5 {[%clk 0:00:28.7]}
27... Bxg5 {[%clk 0:01:11.8]} 28. Rb5 {[%clk 0:00:28.5]} 28... f6 {[%clk
0:01:05.9]} 29. Qh5 {[%clk 0:00:27.7]} 29... Bh6 {[%clk 0:01:04]} 30. Qg6 {[%clk
0:00:27.2]} 30... Qe8 {[%clk 0:00:42.6]} 31. Rxh6 {[%clk 0:00:26.4]} 31... Qxb5
{[%clk 0:00:41.4]} 32. Rh7 {[%clk 0:00:18.9]} 32... Ra7 {[%clk 0:00:23.1]} 33.
Qh5 {[%clk 0:00:18.7]} 33... Kf8 {[%clk 0:00:18.4]} 34. Bh4 {[%clk 0:00:17.6]}
34... Rd6 {[%clk 0:00:10.5]} 35. Rh8+ {[%clk 0:00:14]} 35... Ke7 {[%clk
0:00:10.2]} 36. Qh7 {[%clk 0:00:13.7]} 36... Ke6 {[%clk 0:00:08.1]} 37. Qg8+
{[%clk 0:00:11.9]} 37... Rf7 {[%clk 0:00:06.9]} 38. Qc8+ {[%clk 0:00:08.7]}
38... Qd7 {[%clk 0:00:06.9]} 39. Re8+ {[%clk 0:00:08.1]} 39... Re7 {[%clk
0:00:07.3]} 40. Qa8 {[%clk 0:00:07.2]} 40... Rxe8 {[%clk 0:00:07.3]} 41. Qxe4
{[%clk 0:00:07.8]} 41... a4 {[%clk 0:00:06.9]} 42. Qg4+ {[%clk 0:00:08.1]} 42...
Ke7 {[%clk 0:00:06.8]} 43. Qxg7+ {[%clk 0:00:08.6]} 43... Kd8 {[%clk 0:00:07.1]}
44. Bxf6+ {[%clk 0:00:09.1]} 44... Kc7 {[%clk 0:00:06.7]} 45. Qg4 {[%clk
0:00:09.3]} 45... Qxg4+ {[%clk 0:00:06.1]} 0-1

[Event "*** Titled Tuesday Blitz"]
[Site "Chess.com"]
[Date "2021.02.02"]
[Round "11"]
[White "Kostya_Nikologorskiy"]
[Black "xberli"]
[Result "0-1"]
[WhiteElo "2626"]
[BlackElo "2510"]
[TimeControl "180+1"]
[EndTime "12:07:39 PST"]
[Termination "xberli won on time"]

1. e4 {[%clk 0:03:00.9]} 1... e5 {[%clk 0:02:57.9]} 2. Nf3 {[%clk 0:03:00.4]}
2... Nc6 {[%clk 0:02:57.3]} 3. d4 {[%clk 0:03:00.6]} 3... exd4 {[%clk
0:02:56.8]} 4. Bc4 {[%clk 0:03:00.6]} 4... Nf6 {[%clk 0:02:53.4]} 5. e5 {[%clk
0:02:59.6]} 5... d5 {[%clk 0:02:48.6]} 6. Bb5 {[%clk 0:02:58.8]} 6... Ne4 {[%clk
0:02:45.9]} 7. Nxd4 {[%clk 0:02:58.4]} 7... Bd7 {[%clk 0:02:42.3]} 8. Bxc6
{[%clk 0:02:56]} 8... bxc6 {[%clk 0:02:43.2]} 9. O-O {[%clk 0:02:54.6]} 9... Bc5
{[%clk 0:02:37.1]} 10. f3 {[%clk 0:02:51.1]} 10... Ng5 {[%clk 0:02:36.1]} 11.
Be3 {[%clk 0:02:44.9]} 11... O-O {[%clk 0:02:33.1]} 12. Qd2 {[%clk 0:02:37.5]}
12... Ne6 {[%clk 0:02:19.3]} 13. Nxe6 {[%clk 0:02:34.8]} 13... Bxe3+ {[%clk
0:02:18.4]} 14. Qxe3 {[%clk 0:02:35.7]} 14... Bxe6 {[%clk 0:02:11.9]} 15. Qc5
{[%clk 0:02:34.5]} 15... Qb8 {[%clk 0:02:10]} 16. Qa3 {[%clk 0:02:08.1]} 16...
Qb6+ {[%clk 0:02:04.5]} 17. Kh1 {[%clk 0:02:08]} 17... Rfb8 {[%clk 0:02:04.8]}
18. b3 {[%clk 0:01:54.1]} 18... Qd4 {[%clk 0:01:44.6]} 19. c3 {[%clk 0:01:52.4]}
19... Qxe5 {[%clk 0:01:44.5]} 20. Qc5 {[%clk 0:01:52.1]} 20... Qd6 {[%clk
0:01:42.3]} 21. Qxd6 {[%clk 0:01:45.2]} 21... cxd6 {[%clk 0:01:43.2]} 22. Nd2
{[%clk 0:01:41]} 22... a5 {[%clk 0:01:40.4]} 23. f4 {[%clk 0:01:35.9]} 23... Bf5
{[%clk 0:01:30]} 24. h3 {[%clk 0:01:35.2]} 24... h5 {[%clk 0:01:23.7]} 25. Rfe1
{[%clk 0:01:32]} 25... a4 {[%clk 0:01:21.5]} 26. b4 {[%clk 0:01:31.6]} 26... a3
{[%clk 0:00:53.5]} 27. Nb3 {[%clk 0:01:26.5]} 27... Be4 {[%clk 0:00:49.1]} 28.
Kg1 {[%clk 0:01:20.5]} 28... Kf8 {[%clk 0:00:36.6]} 29. Kf2 {[%clk 0:01:20.2]}
29... Bd3 {[%clk 0:00:36.4]} 30. g4 {[%clk 0:01:17.4]} 30... h4 {[%clk
0:00:32.4]} 31. Re3 {[%clk 0:01:12.8]} 31... Bc4 {[%clk 0:00:31.1]} 32. Na5
{[%clk 0:01:13.1]} 32... c5 {[%clk 0:00:26]} 33. Kf3 {[%clk 0:00:43.9]} 33...
cxb4 {[%clk 0:00:24.5]} 34. cxb4 {[%clk 0:00:44.8]} 34... Rxb4 {[%clk
0:00:23.8]} 35. Rxa3 {[%clk 0:00:44.9]} 35... Bb5 {[%clk 0:00:18.2]} 36. Rb3
{[%clk 0:00:19.3]} 36... Rxb3+ {[%clk 0:00:16.4]} 37. axb3 {[%clk 0:00:20.2]}
37... Rc8 {[%clk 0:00:14.7]} 38. Ke3 {[%clk 0:00:18.4]} 38... Rc3+ {[%clk
0:00:14.3]} 39. Kf2 {[%clk 0:00:16]} 39... Rxh3 {[%clk 0:00:13.3]} 40. Rd1
{[%clk 0:00:16.5]} 40... Rd3 {[%clk 0:00:11.8]} 41. Rh1 {[%clk 0:00:13.3]} 41...
h3 {[%clk 0:00:11.6]} 42. b4 {[%clk 0:00:12]} 42... d4 {[%clk 0:00:11.7]} 43.
Nb7 {[%clk 0:00:10.2]} 43... Ke7 {[%clk 0:00:10.7]} 44. Re1+ {[%clk 0:00:09.6]}
44... Kd7 {[%clk 0:00:10.8]} 45. f5 {[%clk 0:00:10.1]} 45... h2 {[%clk
0:00:10.3]} 46. Na5 {[%clk 0:00:06.5]} 46... Rd2+ {[%clk 0:00:08.9]} 47. Kg3
{[%clk 0:00:06.8]} 47... Rb2 {[%clk 0:00:08.9]} 48. g5 {[%clk 0:00:04.1]} 48...
Bc6 {[%clk 0:00:08.9]} 49. Nxc6 {[%clk 0:00:03.7]} 49... Kxc6 {[%clk 0:00:09.8]}
50. f6 {[%clk 0:00:04.3]} 50... gxf6 {[%clk 0:00:10.1]} 51. gxf6 {[%clk
0:00:05.2]} 51... Kd5 {[%clk 0:00:09.4]} 52. Kh3 {[%clk 0:00:02.7]} 52... d3
{[%clk 0:00:09.3]} 53. b5 {[%clk 0:00:02.7]} 53... Kc5 {[%clk 0:00:08.7]} 54.
Rd1 {[%clk 0:00:01.2]} 54... Kxb5 {[%clk 0:00:08.3]} 55. Kg3 {[%clk 0:00:01.8]}
55... Kc4 {[%clk 0:00:08.5]} 0-1

[Event "*** Titled Tuesday Blitz"]
[Site "Chess.com"]
[Date "2021.02.02"]
[Round "11"]
[White "LiamVrolijk"]
[Black "jefferyx"]
[Result "0-1"]
[WhiteElo "2875"]
[BlackElo "2989"]
[TimeControl "180+1"]
[EndTime "12:07:43 PST"]
[Termination "jefferyx won on time"]

1. c4 {[%clk 0:03:00.9]} 1... g6 {[%clk 0:02:52.2]} 2. e4 {[%clk 0:02:57.6]}
2... e5 {[%clk 0:02:50.8]} 3. Nf3 {[%clk 0:02:55.8]} 3... Bg7 {[%clk 0:02:49.7]}
4. d4 {[%clk 0:02:54.9]} 4... exd4 {[%clk 0:02:50.6]} 5. Nxd4 {[%clk 0:02:55.8]}
5... Nc6 {[%clk 0:02:51.1]} 6. Be3 {[%clk 0:02:53.6]} 6... Qf6 {[%clk
0:02:50.6]} 7. Nxc6 {[%clk 0:02:48.5]} 7... dxc6 {[%clk 0:02:49.8]} 8. Nc3
{[%clk 0:02:47]} 8... Qe7 {[%clk 0:02:45.3]} 9. Qc2 {[%clk 0:02:44.7]} 9... Nh6
{[%clk 0:02:35.6]} 10. Be2 {[%clk 0:02:44.1]} 10... f5 {[%clk 0:02:33]} 11. O-O
{[%clk 0:02:38.5]} 11... O-O {[%clk 0:02:32.9]} 12. f3 {[%clk 0:02:30.7]} 12...
f4 {[%clk 0:02:31.5]} 13. Bf2 {[%clk 0:02:30.9]} 13... Nf7 {[%clk 0:02:30.8]}
14. Rab1 {[%clk 0:02:24.1]} 14... Ne5 {[%clk 0:02:29.8]} 15. b4 {[%clk
0:02:23.1]} 15... Qg5 {[%clk 0:02:22.5]} 16. Kh1 {[%clk 0:02:22.3]} 16... Be6
{[%clk 0:02:19.2]} 17. b5 {[%clk 0:02:21.1]} 17... Qh6 {[%clk 0:02:11.5]} 18.
bxc6 {[%clk 0:02:19.2]} 18... bxc6 {[%clk 0:02:12.4]} 19. Na4 {[%clk 0:02:16.6]}
19... g5 {[%clk 0:02:10.8]} 20. Nc5 {[%clk 0:02:15.2]} 20... Bc8 {[%clk
0:02:10.9]} 21. Nd3 {[%clk 0:02:03.7]} 21... g4 {[%clk 0:02:07.6]} 22. Nxe5
{[%clk 0:01:59.3]} 22... g3 {[%clk 0:02:08]} 23. Bg1 {[%clk 0:01:57.6]} 23...
Bxe5 {[%clk 0:02:08.6]} 24. Rfd1 {[%clk 0:01:39]} 24... Be6 {[%clk 0:01:58.1]}
25. c5 {[%clk 0:01:36.4]} 25... Kh8 {[%clk 0:01:52.7]} 26. Bc4 {[%clk
0:01:36.4]} 26... Bc8 {[%clk 0:01:30.7]} 27. Rd2 {[%clk 0:01:27.1]} 27... a5
{[%clk 0:01:28.6]} 28. Rbd1 {[%clk 0:01:26.7]} 28... Qf6 {[%clk 0:01:25.5]} 29.
h3 {[%clk 0:01:19.7]} 29... a4 {[%clk 0:01:22.1]} 30. Bd4 {[%clk 0:01:17.5]}
30... Kg7 {[%clk 0:01:17]} 31. Qc3 {[%clk 0:01:15.3]} 31... Re8 {[%clk
0:01:13.7]} 32. Bxe5 {[%clk 0:01:13.9]} 32... Qxe5 {[%clk 0:01:14.6]} 33. Qb4
{[%clk 0:01:07.6]} 33... Kf6 {[%clk 0:01:01.8]} 34. Kg1 {[%clk 0:01:03.6]} 34...
h6 {[%clk 0:00:59.9]} 35. Rd4 {[%clk 0:00:54.6]} 35... Kg6 {[%clk 0:00:57.8]}
36. a3 {[%clk 0:00:52]} 36... Kf6 {[%clk 0:00:57.9]} 37. Qd2 {[%clk 0:00:48]}
37... Rb8 {[%clk 0:00:55.9]} 38. Qc2 {[%clk 0:00:38.6]} 38... Ra8 {[%clk
0:00:49.7]} 39. Kh1 {[%clk 0:00:38.5]} 39... Kg6 {[%clk 0:00:45.6]} 40. Bf1
{[%clk 0:00:36.4]} 40... Be6 {[%clk 0:00:43.3]} 41. Bc4 {[%clk 0:00:34.5]} 41...
Bc8 {[%clk 0:00:42.8]} 42. Qa2 {[%clk 0:00:32.4]} 42... Kf6 {[%clk 0:00:40.3]}
43. Bf7 {[%clk 0:00:30.9]} 43... Rf8 {[%clk 0:00:38.5]} 44. Bc4 {[%clk
0:00:30.8]} 44... Re8 {[%clk 0:00:38.8]} 45. Qd2 {[%clk 0:00:28.9]} 45... Kg6
{[%clk 0:00:37.8]} 46. Ba2 {[%clk 0:00:23.4]} 46... Rf8 {[%clk 0:00:35.5]} 47.
Qc2 {[%clk 0:00:22.1]} 47... Ra5 {[%clk 0:00:32.4]} 48. Qd3 {[%clk 0:00:16.7]}
48... Rxc5 {[%clk 0:00:30.7]} 49. Rd8 {[%clk 0:00:16.8]} 49... Ba6 {[%clk
0:00:28.2]} 50. Qd7 {[%clk 0:00:14.7]} 50... Rxd8 {[%clk 0:00:27.2]} 51. Qxd8
{[%clk 0:00:13.1]} 51... Qg7 {[%clk 0:00:28.1]} 52. Qe8+ {[%clk 0:00:11.3]}
52... Kg5 {[%clk 0:00:27.2]} 53. h4+ {[%clk 0:00:10.1]} 53... Kxh4 {[%clk
0:00:26.9]} 54. Qd8+ {[%clk 0:00:06.1]} 54... Rg5 {[%clk 0:00:22.8]} 55. Qd2
{[%clk 0:00:04.4]} 55... Qf8 {[%clk 0:00:20.6]} 56. Qd7 {[%clk 0:00:02.6]} 56...
Bc8 {[%clk 0:00:20]} 57. Qh7 {[%clk 0:00:02.8]} 57... Qg7 {[%clk 0:00:15.9]} 58.
Qxg7 {[%clk 0:00:01.7]} 58... Rxg7 {[%clk 0:00:16.8]} 59. e5 {[%clk 0:00:02.2]}
59... Kg5 {[%clk 0:00:15.8]} 60. Rd8 {[%clk 0:00:01.8]} 60... Rd7 {[%clk
0:00:15]} 0-1

[Event "*** Titled Tuesday Blitz"]
[Site "Chess.com"]
[Date "2021.02.02"]
[Round "11"]
[White "The_Machine04"]
[Black "queen_iryna"]
[Result "1-0"]
[WhiteElo "2485"]
[BlackElo "2316"]
[TimeControl "180+1"]
[EndTime "12:07:43 PST"]
[Termination "The_Machine04 won by checkmate"]

1. d4 {[%clk 0:03:00.9]} 1... d6 {[%clk 0:03:00.2]} 2. Nf3 {[%clk 0:03:00]} 2...
g6 {[%clk 0:03:00.3]} 3. Nbd2 {[%clk 0:02:59.3]} 3... Bg7 {[%clk 0:02:57.4]} 4.
e4 {[%clk 0:02:59.6]} 4... Nc6 {[%clk 0:02:54.2]} 5. c3 {[%clk 0:02:59.9]} 5...
e5 {[%clk 0:02:52.3]} 6. dxe5 {[%clk 0:02:59.7]} 6... dxe5 {[%clk 0:02:40.2]} 7.
Bc4 {[%clk 0:02:59.5]} 7... Nf6 {[%clk 0:02:36.7]} 8. O-O {[%clk 0:02:58.5]}
8... O-O {[%clk 0:02:36.6]} 9. Qe2 {[%clk 0:02:57.3]} 9... Re8 {[%clk
0:02:15.2]} 10. Rd1 {[%clk 0:02:56]} 10... Qe7 {[%clk 0:02:14.8]} 11. Nf1 {[%clk
0:02:54.7]} 11... Nd8 {[%clk 0:02:03.1]} 12. N3d2 {[%clk 0:02:49]} 12... Ne6
{[%clk 0:01:58.5]} 13. g3 {[%clk 0:02:45.3]} 13... c6 {[%clk 0:01:51.2]} 14. Ne3
{[%clk 0:02:43.5]} 14... b5 {[%clk 0:01:46.6]} 15. Bb3 {[%clk 0:02:42.9]} 15...
Nc5 {[%clk 0:01:39]} 16. Bc2 {[%clk 0:02:42.4]} 16... Bh3 {[%clk 0:01:35.4]} 17.
f3 {[%clk 0:02:41.3]} 17... Nh5 {[%clk 0:01:23.3]} 18. Ndf1 {[%clk 0:02:39.3]}
18... Rad8 {[%clk 0:01:12.5]} 19. Rxd8 {[%clk 0:02:33.8]} 19... Rxd8 {[%clk
0:01:13.4]} 20. b4 {[%clk 0:02:33]} 20... Ne6 {[%clk 0:01:03.4]} 21. a4 {[%clk
0:02:32.4]} 21... Nhf4 {[%clk 0:00:23]} 22. gxf4 {[%clk 0:02:31.3]} 22... exf4
{[%clk 0:00:23.1]} 23. Ng2 {[%clk 0:02:18.7]} 23... Bxc3 {[%clk 0:00:21.3]} 24.
Rb1 {[%clk 0:02:16.5]} 24... Bxb4 {[%clk 0:00:19.3]} 25. Nxf4 {[%clk 0:01:33.7]}
25... Nxf4 {[%clk 0:00:13.9]} 26. Bxf4 {[%clk 0:01:32.2]} 26... Bc5+ {[%clk
0:00:12.8]} 27. Ne3 {[%clk 0:01:20.9]} 27... b4 {[%clk 0:00:13.7]} 28. Bb3
{[%clk 0:01:14.8]} 28... g5 {[%clk 0:00:13.2]} 29. Bg3 {[%clk 0:01:13.3]} 29...
Qd7 {[%clk 0:00:11.3]} 30. Rd1 {[%clk 0:01:09.9]} 30... Qc7 {[%clk 0:00:10.8]}
31. Rxd8+ {[%clk 0:01:03.8]} 31... Qxd8 {[%clk 0:00:11.7]} 32. Kh1 {[%clk
0:01:00.8]} 32... Qb6 {[%clk 0:00:11.1]} 33. Nc4 {[%clk 0:00:56.4]} 33... Qd8
{[%clk 0:00:10.3]} 34. Qd2 {[%clk 0:00:54]} 34... Qd4 {[%clk 0:00:08.1]} 35.
Qxd4 {[%clk 0:00:53.2]} 35... Bxd4 {[%clk 0:00:09]} 36. Be5 {[%clk 0:00:49.1]}
36... Bxe5 {[%clk 0:00:08.5]} 37. Nxe5 {[%clk 0:00:50]} 37... c5 {[%clk
0:00:08.1]} 38. Kg1 {[%clk 0:00:49.6]} 38... Be6 {[%clk 0:00:07.2]} 39. Bxe6
{[%clk 0:00:45]} 39... fxe6 {[%clk 0:00:08.1]} 40. Nc4 {[%clk 0:00:45.6]} 40...
b3 {[%clk 0:00:08]} 41. Kf2 {[%clk 0:00:45.3]} 41... Kf7 {[%clk 0:00:08.2]} 42.
Ke3 {[%clk 0:00:45.5]} 42... Ke7 {[%clk 0:00:08.6]} 43. Kd3 {[%clk 0:00:45.2]}
43... h5 {[%clk 0:00:09]} 44. h3 {[%clk 0:00:44.6]} 44... Kf6 {[%clk 0:00:09.2]}
45. Kc3 {[%clk 0:00:43.7]} 45... g4 {[%clk 0:00:09.5]} 46. fxg4 {[%clk
0:00:43.7]} 46... hxg4 {[%clk 0:00:10.4]} 47. hxg4 {[%clk 0:00:44]} 47... Kg5
{[%clk 0:00:11.1]} 48. Kxb3 {[%clk 0:00:43]} 48... Kxg4 {[%clk 0:00:11.5]} 49.
Kc3 {[%clk 0:00:43]} 49... Kf4 {[%clk 0:00:11.6]} 50. Kd3 {[%clk 0:00:43.5]}
50... Kf3 {[%clk 0:00:11.5]} 51. Nd6 {[%clk 0:00:40.3]} 51... Kf4 {[%clk
0:00:11.7]} 52. Kc4 {[%clk 0:00:40.2]} 52... Ke5 {[%clk 0:00:10.7]} 53. Kxc5
{[%clk 0:00:40.6]} 53... a5 {[%clk 0:00:10.8]} 54. Kc6 {[%clk 0:00:39.3]} 54...
Kd4 {[%clk 0:00:09.9]} 55. Kd7 {[%clk 0:00:36.2]} 55... Ke5 {[%clk 0:00:09.3]}
56. Ke7 {[%clk 0:00:35.7]} 56... Kd4 {[%clk 0:00:06.9]} 57. Kxe6 {[%clk
0:00:35.6]} 57... Kc5 {[%clk 0:00:07.2]} 58. e5 {[%clk 0:00:34.1]} 58... Kb4
{[%clk 0:00:07.3]} 59. Kd5 {[%clk 0:00:32.5]} 59... Kxa4 {[%clk 0:00:07.3]} 60.
e6 {[%clk 0:00:33.1]} 60... Kb3 {[%clk 0:00:07.5]} 61. e7 {[%clk 0:00:33.4]}
61... a4 {[%clk 0:00:08.4]} 62. e8=Q {[%clk 0:00:33.6]} 62... a3 {[%clk
0:00:09.3]} 63. Qb5+ {[%clk 0:00:33.5]} 63... Ka2 {[%clk 0:00:08.9]} 64. Nc4
{[%clk 0:00:29.9]} 64... Ka1 {[%clk 0:00:09.1]} 65. Qb3 {[%clk 0:00:29.5]} 65...
a2 {[%clk 0:00:09.1]} 66. Qb2# {[%clk 0:00:30.1]} 1-0